Cogmind - Beta 12 X4 @@@ ROGUE MODE // 2022.10.22 @ 17:14:28 Player: albenzo Result: Destroyed by as-26475 with Assembled Maul Performance ------------- Evolutions (1) 500 Regions Visited (5) 1000 Robots Destroyed (84) 420 Value Destroyed (2138) 2138 Prototype IDs (4) 80 Alien Tech Used (0) 0 Bonus (58) 58 TOTAL SCORE: 4196 Bonus ------- High Alert Combat Kills 65 Follower Combat Kills 66 Friendly Fire -73 Cogmind --------- Core Integrity 0/400 Matter 300/300 Energy 100/100 System Corruption 4% Temperature Cool (0) Movement Core (700) Ox13 Location -9/Exiles Parts ------- > --- POWER (1) -------- (None) > --- PROPULSION (3) --- (None) > --- UTILITY (3) ------ High-capacity Storage Unit > --- WEAPON (2) ------- (None) > --- INVENTORY (20) --- Light Nuclear Core Improved Flight Unit Improved VTOL Module Improved VTOL Module Improved VTOL Module Improved VTOL Module Medium Storage Unit Structural Scanner Sensor Array Signal Interpreter Light Armor Plating Hacking Suite Makeshift System Shield Shotgun Rocket Launcher Katana Peak State ------------ > --- POWER ------------ Heavy Ion Engine > --- PROPULSION ------- Armored Treads Armored Treads Armored Treads > --- UTILITY ---------- High-capacity Storage Unit Salvage Targeting Computer Hardened Medium Armor Plating > --- WEAPON ----------- Improved Assault Rifle Improved Assault Rifle > --- INVENTORY -------- Light Nuclear Core Armored Treads Armored Wheel Flight Unit Flight Unit Flight Unit Improved Flight Unit Improved Flight Unit Medium Storage Unit Large Storage Unit Structural Scanner Sensor Array Signal Interpreter Light Armor Plating Hacking Suite Makeshift System Shield Shotgun Grenade Launcher Katana [Rating: 27] Favorites ----------- Power Heavy Ion Engine Engine Heavy Ion Engine Power Core Light Nuclear Core Propulsion Light Treads Treads Light Treads Wheel Armored Wheel Utility High-capacity Storage Unit Device Seismic Detector Storage High-capacity Storage Unit Processor Salvage Targeting Computer Protection Hardened Medium Armor Plating Weapon Improved Assault Rifle Ballistic Gun Improved Assault Rifle Ballistic Cannon Bore Cannon Launcher Grenade Launcher Build | -11 -10 -10 -9 -9 -9 ------- Run | Scr Mat Min Mat Min Exi Slots Evolved 2 | . . . 2 . . Power . | . . . . . . Propulsion 1 | . . . 1 . . Utility 1 | . . . 1 . . Weapon . | . . . . . . Parts Attached 47 | 7 11 10 13 4 2 Power 7 | 1 3 1 2 . . Engine 6 | 1 2 1 2 . . Core 1 | . 1 . . . . Reactor . | . . . . . . Propulsion 13 | 2 1 2 5 1 2 Treads 11 | 2 1 2 5 1 . Leg . | . . . . . . Wheel 1 | . . . . . 1 Hover . | . . . . . . Flight 1 | . . . . . 1 Utility 14 | 2 5 4 3 . . Device 4 | 1 2 . 1 . . Storage 3 | 1 1 1 . . . Processor 3 | . 1 1 1 . . Hackware . | . . . . . . Protection 4 | . 1 2 1 . . Artifact . | . . . . . . Weapon 13 | 2 2 3 3 3 . Energy Gun . | . . . . . . Energy Cannon . | . . . . . . Ballistic Gun 10 | 2 2 1 3 2 . Ballistic Cannon 1 | . . 1 . . . Launcher 2 | . . 1 . 1 . Special Weapon . | . . . . . . Impact Weapon . | . . . . . . Slashing Weapon . | . . . . . . Piercing Weapon . | . . . . . . Special Melee Weapon . | . . . . . . Unidentified Prototypes 3 | . . . 2 . 1 Parts Lost 15 | . . 3 1 3 8 Power 1 | . . . . . 1 Propulsion 6 | . . 1 . 2 3 Utility 5 | . . 2 1 . 2 Weapon 3 | . . . . 1 2 Highest Loss Streak 8 | . . 1 1 1 8 To Critical Strikes 1 | . . . . 1 . Average Slot Usage (%) 98 | . 100 99 99 98 83 Engine 12 | . 13 14 10 11 11 Treads 29 | . 28 28 33 31 20 Device 5 | . 11 3 6 . . Storage 12 | . 14 14 11 11 11 Processor 7 | . . 6 10 11 10 Protection 5 | . 2 4 4 11 9 Ballistic Gun 20 | . 28 14 17 21 20 Ballistic Cannon 3 | . . 13 3 . . Naked Turns . | . . . . . . Heaviest Build 63 | 14 32 62 63 62 62 Greatest Support 60 | 40 40 40 60 60 40 Greatest Overweight (x) 15 | 1 . 1 1 1 15 Average Overweight (x) . | . . . . 1 1 Largest Inventory Capacity 20 | 8 15 20 20 20 20 Average Capacity 17 | 7 10 19 20 20 20 Most Carried 20 | 7 15 20 20 20 18 Average Carried 16 | 5 10 18 19 19 17 Final Capacity 20 | 8 15 20 20 20 20 Final Carried 20 | 7 15 17 20 18 16 Class Distribution -------------------- 100% | Mutant Dominant Class ---------------- Mutant | -10/Materials Mutant | -10/Mines Mutant | -9/Materials Mutant | -9/Mines Mutant | -9/Exiles Resources | -11 -10 -10 -9 -9 -9 ----------- Run | Scr Mat Min Mat Min Exi Matter Collected 2498 | 311 564 326 955 342 . Remotely . | . . . . . . Salvage Created 3093 | 116 663 312 1436 566 . Parts 199 | 8 43 17 91 40 . Haulers Intercepted 5 | . 2 . 3 . . Recyclers Shooed 3 | . 1 2 . . . Parts Field Recycled . | . . . . . . Retrieved Matter . | . . . . . . Parts Self-Destructed . | . . . . . . Prevented . | . . . . . . Kills | -11 -10 -10 -9 -9 -9 ------- Run | Scr Mat Min Mat Min Exi Combat Hostiles Destroyed 65 | . 14 8 25 18 . Guns 53 | . 14 3 19 17 . Cannons 11 | . . 5 6 . . AOE 1 | . . . . 1 . Classes Destroyed 14 | 2 6 3 3 . . Worker 4 | . 1 . 3 . . Tunneler 4 | 2 . . 1 1 . Hauler 5 | . 2 . 3 . . Recycler 3 | 1 . 2 . . . Operator 2 | . 1 . 1 . . Watcher 4 | . 3 . 1 . . Swarmer 15 | . 3 2 . 10 . Grunt 33 | . 11 . 15 7 . Brawler 2 | . . . 1 1 . Duelist 1 | . . . 1 . . Sentry 8 | . . . 8 . . Demolisher 2 | . . 2 . . . Zionite 1 | . . 1 . . . Assembled 4 | . . 4 . . . Best Kill Streak 4 | 3 4 2 3 3 . Combat Bots Only 3 | . 3 2 3 3 . Max Kills in Single Turn 2 | 1 1 1 2 2 . Gunslinging 1 | . . . . 1 . Exploded 1 | . . . . 1 . Melee . | . . . . . . Uniques/NPCs Destroyed . | . . . . . . Combat | -11 -10 -10 -9 -9 -9 -------- Run | Scr Mat Min Mat Min Exi Damage Taken 3776 | . 376 588 1016 780 1016 Core 577 | . 94 61 100 58 264 Absorbed by Shields . | . . . . . . Regen/Repaired (Parts) 64 | . . . 64 . . Core Remaining (%) 69 | 100 . 38 . . . Volleys Fired 275 | 12 63 46 100 53 1 Largest 2 | 2 2 2 2 2 2 Hottest 80 | 40 46 80 80 46 46 Shots Fired 482 | 24 127 54 172 103 2 Gun 397 | 24 127 15 127 102 2 Cannon 81 | . . 36 45 . . Launcher 4 | . . 3 . 1 . Special . | . . . . . . Kinetic 478 | 24 127 51 172 102 2 Thermal . | . . . . . . Explosive 4 | . . 3 . 1 . Electromagnetic . | . . . . . . Robot Hit Streak 13 | 4 10 3 13 10 9 Robot Miss Streak 4 | 3 4 4 3 2 . Penetration Max 1 | . . 1 1 . . Secondary Targets 8 | . 2 . 2 4 . Max Gunslinging Chain 1 | . 1 . 1 1 . Shots Hit Robots 304 | 13 79 23 119 68 2 Core Hits 135 | 5 41 13 49 27 . Critical Kills 17 | 1 . 8 7 1 . Critical Parts Destroyed 17 | . 2 3 11 1 . Critical Strikes 36 | 1 2 11 20 2 . Destroy 36 | 1 2 11 20 2 . Melee Attacks . | . . . . . . Impact . | . . . . . . Slashing . | . . . . . . Piercing . | . . . . . . Sneak Attacks . | . . . . . . Combat Hostiles . | . . . . . . Follow-up Attacks . | . . . . . . Damage Inflicted 4596 | 149 953 418 1987 1059 30 Guns 3672 | 149 953 106 1410 1024 30 Cannons 889 | . . 312 577 . . Explosions 35 | . . . . 35 . Melee . | . . . . . . Ramming . | . . . . . . Kinetic 4561 | 149 953 418 1987 1024 30 Thermal . | . . . . . . Explosive 35 | . . . . 35 . Electromagnetic . | . . . . . . Impact . | . . . . . . Slashing . | . . . . . . Piercing . | . . . . . . Highest Corruption 4 | . 1 1 . 1 4 Average Corruption 1 | . 1 1 . 1 1 Corruption Purged . | . . . . . . Corruption Blocked . | . . . . . . Effects 22 | . 9 11 . 1 1 Message Errors 3 | . 1 1 . . 1 Matter Fused 5 | . 1 4 . . . Heat Flow Errors 3 | . 1 2 . . . Energy Discharges 5 | . 3 1 . 1 . Data Loss (minor) 2 | . 1 1 . . . Data Loss (major) 1 | . 1 . . . . Misfires 2 | . 1 1 . . . Weapon Failures 1 | . . 1 . . . Overload Shots . | . . . . . . Overflow Damage 19 | . . . 19 . . Projectiles 19 | . . . 19 . . Explosions . | . . . . . . Melee . | . . . . . . Knockbacks 7 | . . 4 3 . . Impact . | . . . . . . Kinetic 7 | . . 4 3 . . Secondary . | . . . . . . Self-Inflicted Damage . | . . . . . . Shots . | . . . . . . Rammed . | . . . . . . Targets Rammed . | . . . . . . Kicked . | . . . . . . Crushed . | . . . . . . Highest Temperature 242 | . 213 242 201 59 18 Average Temperature 53 | . 30 88 49 17 18 Received Heat Transfer 1112 | . 237 . 456 279 140 Siege Activations . | . . . . . . Robots Corrupted . | . . . . . . Combat Hostiles . | . . . . . . Parts Fried . | . . . . . . Impact Corruptions . | . . . . . . Robots Melted . | . . . . . . Combat Hostiles . | . . . . . . Parts Melted . | . . . . . . Heat Transferred . | . . . . . . Parts Sabotaged . | . . . . . . Parts Stolen . | . . . . . . Parts Stripped . | . . . . . . Power Chain Reactions . | . . . . . . Missiles Intercepted . | . . . . . . Alert | -11 -10 -10 -9 -9 -9 ------- Run | Scr Mat Min Mat Min Exi Peak Influence 507 | 15 186 66 507 388 . Initial 121 | . 9 21 13 121 . Average 143 | 6 61 31 266 203 . Maximum Alert Level 2 | . . . 2 1 . Low Security (%) 71 | 100 100 100 40 50 . Level 1 21 | . . . 36 50 . Level 2 6 | . . . 23 . . Level 3 . | . . . . . . Level 4 . | . . . . . . Level 5 . | . . . . . . High Security . | . . . . . . Max Security . | . . . . . . Squads Dispatched 8 | . 3 . 5 . . Investigation 4 | . 2 . 2 . . Extermination . | . . . . . . Reinforcement 4 | . 1 . 3 . . Assault . | . . . . . . Garrison . | . . . . . . Intercept . | . . . . . . Searches Triggered . | . . . . . . Construction Impeded 1 | . . . 1 . . Haulers Reinforced . | . . . . . . Active Scanning Responses . | . . . . . . Cargo Convoy Interrupts . | . . . . . . Stealth | -11 -10 -10 -9 -9 -9 --------- Run | Scr Mat Min Mat Min Exi Distress Signals 3 | . 2 . 1 . . Communications Jammed . | . . . . . . Distress Signals . | . . . . . . Times Spotted 117 | . 26 9 38 23 21 Peak Tracking Total 14 | . 3 3 4 4 14 Tactical Retreats 14 | . 2 . 6 4 2 Traps | -11 -10 -10 -9 -9 -9 ------- Run | Scr Mat Min Mat Min Exi Traps Triggered 2 | . 1 . 1 . . Indirectly . | . . . . . . Trap Hack Attempts . | . . . . . . Triggered . | . . . . . . Disarmed . | . . . . . . Reprogrammed . | . . . . . . Reused . | . . . . . . Traps Extracted . | . . . . . . Installed . | . . . . . . Triggered . | . . . . . . Machines | -11 -10 -10 -9 -9 -9 ---------- Run | Scr Mat Min Mat Min Exi Machines Disabled 6 | . . . 4 2 . Max in Single Turn 1 | . . . 1 1 . Machines Sabotaged . | . . . . . . Overloaded Fab Kills . | . . . . . . Hacking | -11 -10 -10 -9 -9 -9 --------- Run | Scr Mat Min Mat Min Exi Machines Accessed 15 | . 7 . 8 . . Terminals 13 | . 7 . 6 . . Fabricators . | . . . . . . Repair Stations 1 | . . . 1 . . Recycling Units . | . . . . . . Scanalyzers 1 | . . . 1 . . Garrison Access . | . . . . . . Total Hacks 54 | . 23 . 31 . . Successful 21 | . 7 . 14 . . Failed 33 | . 16 . 17 . . Catastrophic 5 | . 4 . 1 . . Database Lockouts . | . . . . . . Manual 27 | . 15 . 12 . . Terminals 48 | . 23 . 25 . . Fabricators . | . . . . . . Repair Stations 4 | . . . 4 . . Recycling Units . | . . . . . . Scanalyzers 2 | . . . 2 . . Garrison Access . | . . . . . . Terminal Hacks 17 | . 7 . 10 . . Prototype ID Bank 1 | . . . 1 . . Branch Access Points 2 | . 1 . 1 . . Terminal Index 2 | . 1 . 1 . . Alert Level 1 | . . . 1 . . Unreport Threat 1 | . . . 1 . . Locate Traps 4 | . 2 . 2 . . Patrol Status 1 | . 1 . . . . Transport Status 2 | . . . 2 . . Hauler Manifests 2 | . 1 . 1 . . Zone Layout 1 | . 1 . . . . Fabricator Hacks . | . . . . . . Repair Station Hacks 4 | . . . 4 . . Scan Component 2 | . . . 2 . . Repair 2 | . . . 2 . . Recycling Unit Hacks . | . . . . . . Scanalyzer . | . . . . . . Garrison Access Hacks . | . . . . . . Unauthorized Hacks . | . . . . . . Terminals . | . . . . . . Fabricators . | . . . . . . Repair Stations . | . . . . . . Recycling Units . | . . . . . . Scanalyzers . | . . . . . . Garrison Access . | . . . . . . Data Cores Recovered . | . . . . . . Used . | . . . . . . Hacking Detections 14 | . 7 . 7 . . Full Trace Events 3 | . 2 . 1 . . Feedback Events . | . . . . . . Feedback Blocked . | . . . . . . Robot Schematics Acquired . | . . . . . . Robots Built . | . . . . . . Authchips . | . . . . . . Time . | . . . . . . Total Robot Build Rating . | . . . . . . Part Schematics Acquired . | . . . . . . Parts Built . | . . . . . . Authchips . | . . . . . . Time . | . . . . . . Total Part Build Rating . | . . . . . . Parts Repaired 2 | . . . 2 . . Time 70 | . . . 70 . . Parts Recycled . | . . . . . . Recycled Matter . | . . . . . . Retrieved Matter . | . . . . . . Retrieved Components . | . . . . . . Parts Scanalyzed . | . . . . . . Part Schematics Acquired . | . . . . . . Parts Damaged . | . . . . . . Bothacking | -11 -10 -10 -9 -9 -9 ------------ Run | Scr Mat Min Mat Min Exi Used RIF Installer . | . . . . . . Robots Hacked . | . . . . . . Non-combat . | . . . . . . Combat . | . . . . . . Robot Hacks Applied . | . . . . . . Relay Couplers Released . | . . . . . . Fabnet Peak Effective % . | . . . . . . Robots Rewired . | . . . . . . Allies Hacked . | . . . . . . Hacks Repelled . | . . . . . . Allies | -11 -10 -10 -9 -9 -9 -------- Run | Scr Mat Min Mat Min Exi Total Allies 2 | . . 2 . . . Largest Group 2 | . . 2 . . . Highest-Rated Group 46 | . . 46 . . . Highest-Rated Ally 31 | . . 31 . . . Total Orders . | . . . . . . Ally Attacks 7 | . . 7 . . . Total Damage 106 | . . 106 . . . Kills 2 | . . 2 . . . Allies Corrupted . | . . . . . . Allies Melted . | . . . . . . Intel | -11 -10 -10 -9 -9 -9 ------- Run | Scr Mat Min Mat Min Exi Robot Analysis Total . | . . . . . . Derelict Logs Recovered 4 | . . 2 . 2 . Drone Launches . | . . . . . . Drone Recoveries . | . . . . . . Exploration | -11 -10 -10 -9 -9 -9 ------------- Run | Scr Mat Min Mat Min Exi Turns Passed 7512 | 151 1890 1544 2044 1626 257 Spaces Moved 3131 | 65 1000 593 793 580 100 Core 4 | 3 . . . . 1 Treads 3123 | 62 1000 593 793 580 95 Legs . | . . . . . . Wheels 4 | . . . . . 4 Hover . | . . . . . . Flight . | . . . . . . Fastest Speed 50 | 50 160 160 160 246 150 Average Speed 202 | 155 160 236 197 246 255 Slowest Speed 800 | 160 160 240 250 250 800 Overloaded Moves . | . . . . . . Propulsion Burnouts . | . . . . . . Robots Hopped . | . . . . . . Cave-ins Triggered . | . . . . . . Exploration Rate (%) 67 | 6 98 100 63 98 42 Regions Visited 5 Branch Regions 3 Pre-discovered Areas 1 | . . 1 . . . Known Exits Taken 3 | . 1 1 1 . . Unknown Exits Taken 2 | 1 . . . 1 . Scrap Searched 3 | . . 1 . 2 . Spaces Dug . | . . . . . . Terrain Destroyed 72 | . . 42 21 9 . Melee . | . . . . . . Projectile 43 | . . 22 21 . . AOE 29 | . . 20 . 9 . Terrain Rammed . | . . . . . . Walls Destroyed . | . . . . . . Machines Disabled . | . . . . . . Actions | -11 -10 -10 -9 -9 -9 --------- Run | Scr Mat Min Mat Min Exi Total 3850 | 90 1185 681 1118 673 103 Wait 288 | . 60 26 166 36 . Move 3126 | 64 999 592 792 579 100 Hop . | . . . . . . Pick Up 59 | 7 26 3 23 . . Fast Attach 17 | 7 3 2 5 . . Attach 10 | . . 3 3 2 2 Detach 2 | . 1 1 . . . Swap 20 | . 8 5 5 2 . Drop 52 | . 25 3 24 . . Fire 275 | 12 63 46 100 53 1 Melee . | . . . . . . Ram . | . . . . . . Kick . | . . . . . . Crush . | . . . . . . Escape Stasis . | . . . . . . Rewire 1 | . . . . 1 . Trap . | . . . . . . Miscellaneous . | . . . . . . Route ------- -11/Scrapyard -10/Materials (discovered 4 exits: *Mat x3 / *Min) -10/Mines (discovered 2 exits: *Mat x2) -9/Materials (discovered 5 exits: [*Mat x2] / *Min x2 / Sto) -9/Mines (discovered 3 exits: [*Mat x2] / [*Exi]) -9/Exiles History --------- Turn | Location | Event 18 | -11/Scrapyard | Discovered new exit (range 16) 152 | -11/Scrapyard | Entered Materials 302 | -10/Materials | Build established: Mutant 663 | -10/Materials | Identified exit to Mines 687 | -10/Materials | Discovered new exit (range 5) 759 | -10/Materials | Discovered new exit (range 16) 1160 | -10/Materials | Discovered new exit (range 8) 2042 | -10/Materials | Entered Mines 2076 | -10/Mines | A weapon hastily lodged in a ceiling crevice suddenly fell to the ground 2203 | -10/Mines | Identified exit to Materials 2608 | -10/Mines | Learned location of Zion (-6) 2981 | -10/Mines | Assembled infested the area 3049 | -10/Mines | Core integrity fell below 50% 3350 | -10/Mines | Discovered exit to Materials (range 5) 3586 | -10/Mines | Entered Materials 3586 | -9/Materials | Evolved 2 slots: Propulsion x1, Utility x1 3924 | -9/Materials | Identified exit to Mines 3924 | -9/Materials | Identified exit to Storage 4175 | -9/Materials | Discovered new exit (range 15) 4608 | -9/Materials | Repaired Lgt. Nuclear Core 4650 | -9/Materials | Repaired Imp. Ion Engine 5156 | -9/Materials | Discovered new exit (range 4) 5630 | -9/Materials | Entered Mines 5631 | -9/Mines | Discovered new exit (range 6) 6057 | -9/Mines | Learned Materials trap positions 6232 | -9/Mines | Received a Rocket Launcher from a helpful Derelict 6450 | -9/Mines | Discovered new exit (range 15) 6492 | -9/Mines | Learned Materials garrison access intel 6612 | -9/Mines | Deemed a non-threat by the Exiles lab entrance 6612 | -9/Mines | Discovered new exit (range 5) 7256 | -9/Mines | Entered Exiles 7316 | -9/Exiles | Met 8R-AWN 7354 | -9/Exiles | Met EX-HEX 7480 | -9/Exiles | Attacked by the Exiles 7490 | -9/Exiles | Core integrity fell below 50% 7512 | -9/Exiles | Core integrity fell below 20% 7513 | -9/Exiles | Destroyed by as-26475 with Assembled Maul Last Messages --------------- guys. Go see BIN. I can't imagine you'll want to stay in our boring little cave for long, and we could use some help with the project in the back. 07480_ EXILES: Hostile robot within lab perimeter. Defensive protocols time, folks! 07483_ Machine disabled. 07484_ Arm. Treads destroyed. 07485_ Hrd. Medium Armor Plating destroyed. 07487_ Imp. Assault Rifle destroyed. 07491_ Arm. Wheel blasted off. 07495_ EX-BIN: "I just want to science!" 07502_ Hvy. Assault Rifle destroyed. 07506_ Arm. Treads destroyed. 07508_ Identified Imp. Flight Unit. 07508_ Salvage Targeting Computer destroyed. 07508_ System corrupted by crushing effect (+3). 07508_ Imp. Flight Unit destroyed. 07509_ 0&GRBWYS82FVJC